Workbook

Sheet Supplementary Table 7
A1: Supplementary Table 7. The up-regulated miRNAs in ovarian cancer tissues with at least two predicted binding sites.
A2: miRNA | B2: circRNA | C2: binding site (miRanda) | D2: binding site (PITA) | E2: miR_log2(Ratio) | F2: up-down
A3: hsa-miR-23a-3p | B3: hsa_circ_0007444 | C3: 2 | D3: 3 | E3: =VLOOKUP(A3,'[1]Supplementary Table 3'!A:C,2,FALSE) -> 152 | F3: =VLOOKUP(A3,'[1]Supplementary Table 3'!A:C,3,FALSE) -> -12.17
A4: hsa-miR-107 | B4: hsa_circ_0007444 | C4: 2 | D4: 2 | E4: =VLOOKUP(A4,'[1]Supplementary Table 3'!A:C,2,FALSE) -> 158 | F4: =VLOOKUP(A4,'[1]Supplementary Table 3'!A:C,3,FALSE) -> -21.26
A5: hsa-miR-103a-3p | B5: hsa_circ_0007444 | C5: 2 | D5: 2 | E5: =VLOOKUP(A5,'[1]Supplementary Table 3'!A:C,2,FALSE) -> 158 | F5: =VLOOKUP(A5,'[1]Supplementary Table 3'!A:C,3,FALSE) -> -21.26
A6: hsa-miR-550a-5p | B6: hsa_circ_0007444 | C6: 2 | D6: 2 | E6: =VLOOKUP(A6,'[1]Supplementary Table 3'!A:C,2,FALSE) -> 135 | F6: =VLOOKUP(A6,'[1]Supplementary Table 3'!A:C,3,FALSE) -> -19.3
A7: hsa-miR-29b-3p | B7: hsa_circ_0007444 | C7: 2 | D7: 3 | E7: =VLOOKUP(A7,'[1]Supplementary Table 3'!A:C,2,FALSE) -> 129 | F7: =VLOOKUP(A7,'[1]Supplementary Table 3'!A:C,3,FALSE) -> -22.05
A8: hsa-miR-103a-2-5p | B8: hsa_circ_0007444 | C8: 2 | D8: 2 | E8: =VLOOKUP(A8,'[1]Supplementary Table 3'!A:C,2,FALSE) -> 143 | F8: =VLOOKUP(A8,'[1]Supplementary Table 3'!A:C,3,FALSE) -> -15.78
A9: hsa-miR-3074-5p | B9: hsa_circ_0007444 | C9: 2 | D9: 2 | E9: =VLOOKUP(A9,'[1]Supplementary Table 3'!A:C,2,FALSE) -> 135 | F9: =VLOOKUP(A9,'[1]Supplementary Table 3'!A:C,3,FALSE) -> -17.64
A10: hsa-miR-15b-5p | B10: hsa_circ_0007444 | C10: 2 | D10: 4 | E10: =VLOOKUP(A10,'[1]Supplementary Table 3'!A:C,2,FALSE) -> 163 | F10: =VLOOKUP(A10,'[1]Supplementary Table 3'!A:C,3,FALSE) -> -25.93
A11: hsa-miR-1254 | B11: hsa_circ_0007444 | C11: 3 | D11: 3 | E11: =VLOOKUP(A11,'[1]Supplementary Table 3'!A:C,2,FALSE) -> 138 | F11: =VLOOKUP(A11,'[1]Supplementary Table 3'!A:C,3,FALSE) -> -19.4
A12: hsa-miR-1270 | B12: hsa_circ_0007444 | C12: 2 | D12: 2 | E12: =VLOOKUP(A12,'[1]Supplementary Table 3'!A:C,2,FALSE) -> 141 | F12: =VLOOKUP(A12,'[1]Supplementary Table 3'!A:C,3,FALSE) -> -19.11
A13: hsa-miR-873-5p | B13: hsa_circ_0007444 | C13: 2 | D13: 2 | E13: =VLOOKUP(A13,'[1]Supplementary Table 3'!A:C,2,FALSE) -> 131 | F13: =VLOOKUP(A13,'[1]Supplementary Table 3'!A:C,3,FALSE) -> -12.51

Sheet Sheet2

Sheet Sheet3
